bitfinex/quotes_BTCUSD_20230404
["timestamp","ask_amount","ask_price","bid_price","bid_amount"]
[1680609717421,0.02088758,28309.0,28308.0,0.9136675]
[1680609717654,0.02088758,28309.0,28308.0,0.65989534]
[1680609718881,0.02088758,28309.0,28308.0,0.84117649]
[1680609720294,0.02088758,28309.0,28308.0,1.58753857]
[1680609720509,0.02088758,28309.0,28308.0,1.94224913]
[1680609720725,0.02088758,28309.0,28308.0,2.01740615]
[1680609720950,0.02088758,28309.0,28308.0,2.22681684]
[1680609721199,0.02088758,28309.0,28308.0,0.64117649]
[1680609721397,0.03138758,28309.0,28308.0,0.61503644]
[1680609721619,0.41659828,28309.0,28308.0,0.8266648]
[1680609721853,0.56128563,28309.0,28308.0,0.55503166]
[1680609722075,0.2,28308.0,28307.0,0.08472431]
[1680609722308,0.29383546,28308.0,28305.0,0.08374431]
[1680609722571,0.0104,28306.0,28303.0,0.12716986]
[1680609722787,0.049323,28305.0,28304.0,0.12698986]
[1680609723006,0.58589943,28305.0,28303.0,0.12698986]
[1680609723222,0.0085,28305.0,28304.0,0.12698986]
[1680609723449,0.064641,28305.0,28304.0,0.12698986]
[1680609723671,0.073141,28305.0,28304.0,0.12698986]
[1680609723929,0.073141,28305.0,28303.0,0.00012]
[1680609724128,0.0355,28305.0,28304.0,0.001]
[1680609724362,0.1207925,28305.0,28304.0,0.001]
[1680609724778,0.099574,28305.0,28304.0,0.001]
[1680609725885,0.099965,28305.0,28304.0,0.001]
[1680609726609,0.027391,28305.0,28304.0,0.15702881]
[1680609726832,0.027391,28305.0,28304.0,0.40344446]
[1680609727047,0.037891,28305.0,28304.0,0.43977823]
[1680609727260,0.027391,28305.0,28304.0,0.43977823]
[1680609727484,0.027391,28305.0,28304.0,0.55530526]
[1680609727718,0.027391,28305.0,28304.0,0.64054022]
[1680609727916,0.027,28305.0,28304.0,0.64054022]
[1680609728559,0.0105,28307.0,28305.0,0.2]
[1680609728779,0.0105,28307.0,28306.0,0.014131]
[1680609728995,0.0105,28307.0,28306.0,0.12671334]
[1680609729214,0.02704474,28307.0,28306.0,0.00012]
[1680609729437,0.019,28307.0,28305.0,0.12689334]
[1680609729664,0.0085,28306.0,28305.0,0.12689334]
[1680609729878,0.0085,28306.0,28305.0,0.13407034]
[1680609730117,0.0085,28306.0,28305.0,0.54405482]
[1680609730335,0.0085,28306.0,28305.0,0.54735482]
[1680609730551,0.019,28306.0,28305.0,0.54735482]
[1680609730978,0.0176,28306.0,28305.0,0.54735482]
[1680609731206,0.0176,28306.0,28304.0,0.00076199]
[1680609731444,0.0185,28306.0,28305.0,0.001]
[1680609731686,0.0276,28306.0,28305.0,0.001]
[1680609733006,0.0276,28306.0,28305.0,0.015131]
[1680609735178,0.0276,28306.0,28305.0,0.01571291]
[1680609736990,0.02796921,28306.0,28305.0,0.01571291]
[1680609737209,0.02796921,28306.0,28305.0,0.02324291]
[1680609737878,0.0276,28306.0,28305.0,0.02324291]
[1680609738308,0.079661,28306.0,28305.0,0.01571291]
[1680609740536,0.079661,28306.0,28305.0,0.00158191]
[1680609740753,0.0876271,28306.0,28305.0,0.00158191]
[1680609740975,0.08799631,28306.0,28305.0,0.00158191]
[1680609741195,0.25755631,28306.0,28305.0,0.00158191]
[1680609741637,0.08799631,28306.0,28305.0,0.00158191]
[1680609741905,0.08506131,28306.0,28305.0,0.00058191]
[1680609742115,0.07799631,28306.0,28305.0,0.00058191]
[1680609742343,0.07709521,28306.0,28305.0,0.00058191]
[1680609742569,0.07709521,28306.0,28299.0,0.01483599]
[1680609742570,0.44665521,28306.0,28299.0,0.01483599]
[1680609742788,0.00866384,28300.0,28299.0,0.01483599]
[1680609743002,0.00866384,28300.0,28299.0,0.02896999]
[1680609743003,0.01716384,28300.0,28299.0,0.02896999]
[1680609743471,0.01716384,28300.0,28299.0,0.03196999]
[1680609743691,0.01716384,28300.0,28299.0,0.01483599]
[1680609744141,0.01816384,28300.0,28299.0,0.01783599]
[1680609746158,0.01758182,28300.0,28299.0,0.01783599]
[1680609746378,0.0187,28300.0,28299.0,0.03196999]
[1680609746598,0.0187,28300.0,28299.0,0.01783599]
[1680609746820,0.0187,28300.0,28299.0,0.03196999]
[1680609747722,0.0187,28300.0,28299.0,0.01783599]
[1680609747955,0.025767,28300.0,28299.0,0.01783599]
[1680609748264,0.0187,28300.0,28299.0,0.01783599]
[1680609748372,0.243039,28300.0,28299.0,0.01783599]
[1680609748600,0.239049,28300.0,28299.0,0.01783599]
[1680609748826,0.27432282,28300.0,28299.0,0.01783599]
[1680609749055,0.58173464,28300.0,28299.0,0.01483599]
[1680609749280,0.60373464,28300.0,28299.0,0.01483599]
[1680609749519,0.78073464,28300.0,28299.0,0.01483599]
[1680609749746,0.9767014,28300.0,28299.0,0.01483599]
[1680609750187,0.9497014,28300.0,28299.0,0.01483599]
[1680609750412,0.9767014,28300.0,28299.0,0.01483599]
[1680609750638,1.3485014,28300.0,28299.0,0.01483599]
[1680609751309,1.34833894,28300.0,28299.0,0.00983599]
[1680609752940,1.34839894,28300.0,28299.0,0.00983599]
[1680609754079,1.38922644,28300.0,28299.0,0.00575324]
[1680609755052,0.3718,28298.0,28291.0,0.02299875]
[1680609755275,0.0092,28292.0,28291.0,0.02299875]
[1680609755500,0.059985,28292.0,28291.0,0.02299875]
[1680609755727,0.068485,28292.0,28291.0,0.02299875]
[1680609756402,0.070485,28292.0,28291.0,0.02299875]
[1680609756627,0.068485,28292.0,28291.0,0.02299875]
[1680609756857,0.095485,28292.0,28291.0,0.02299875]
[1680609758235,0.068485,28292.0,28291.0,0.02299875]
[1680609758470,0.095485,28292.0,28291.0,0.02299875]
[1680609758927,0.09582756,28292.0,28291.0,0.02299875]
[1680609760258,0.26550756,28292.0,28291.0,0.02299875]
[1680609760712,0.09582756,28292.0,28291.0,0.02311875]
[1680609760943,0.09582756,28292.0,28291.0,0.02299875]
[1680609760944,0.08662756,28292.0,28291.0,0.02299875]
[1680609761199,0.00034256,28292.0,28291.0,0.07010163]
[1680609761446,0.0627942,28292.0,28291.0,0.20749056]
[1680609761671,0.02734256,28292.0,28291.0,0.07310375]
[1680609762113,0.04937774,28297.0,28291.0,0.07310375]
[1680609762336,0.04937774,28297.0,28292.0,0.14189681]
[1680609762539,0.04937774,28297.0,28293.0,0.014137]
[1680609762790,0.16962,28298.0,28293.0,0.15621381]
[1680609763472,0.0085,28297.0,28293.0,0.15621381]
[1680609763721,0.0085,28297.0,28293.0,0.014317]
[1680609764169,0.0175,28297.0,28293.0,0.014317]
[1680609764389,0.0085,28297.0,28293.0,0.014317]
[1680609764608,0.0245,28297.0,28293.0,0.014317]
[1680609765042,0.00032369,28296.0,28293.0,0.014317]
[1680609765936,0.01976806,28296.0,28293.0,0.014317]
[1680609766128,0.0085,28295.0,28293.0,0.014317]
[1680609766828,0.00032369,28296.0,28293.0,0.014317]
[1680609767046,0.069396,28296.0,28293.0,0.014317]
[1680609767270,0.06029,28295.0,28293.0,0.014317]
[1680609767497,0.016,28295.0,28293.0,0.014317]
[1680609767798,0.0085,28294.0,28293.0,0.014317]
[1680609768227,0.0085,28295.0,28293.0,0.014317]
[1680609768676,0.016,28295.0,28293.0,0.014317]
[1680609768905,0.0085,28294.0,28293.0,0.014317]
[1680609769597,0.016,28295.0,28293.0,0.014317]
[1680609769830,0.016,28295.0,28294.0,0.007494]
[1680609770059,0.16962,28301.0,28294.0,0.050085]
[1680609770286,0.0085,28299.0,28295.0,0.14189681]
[1680609770505,0.0085,28299.0,28296.0,0.042408]
[1680609770734,0.0085,28299.0,28296.0,0.042588]
[1680609771632,0.0245,28299.0,28296.0,0.042588]
[1680609772508,0.0245,28299.0,28296.0,0.00018]
[1680609772733,0.0245,28299.0,28295.0,0.00018]
[1680609772734,0.19412,28299.0,28295.0,0.00018]
[1680609772946,0.03660874,28298.0,28295.0,0.00018]
[1680609773219,0.0085,28297.0,28295.0,0.00018]
[1680609774556,0.01,28297.0,28295.0,0.00018]
[1680609774778,0.17818,28296.0,28295.0,0.00018]
[1680609775002,0.205388,28296.0,28295.0,0.00018]
[1680609775231,0.205388,28296.0,28294.0,0.00018]
[1680609775506,0.057522,28295.0,28294.0,0.00018]
[1680609775737,0.18518,28295.0,28294.0,0.00018]
[1680609775980,0.22003291,28295.0,28294.0,0.00018]
[1680609776637,0.05035291,28295.0,28294.0,0.00018]
[1680609776893,0.22003291,28295.0,28293.0,0.00018]
[1680609777105,0.0155,28294.0,28293.0,0.00018]
[1680609777540,0.00843257,28294.0,28293.0,0.01786868]
[1680609778008,0.02732341,28295.0,28293.0,0.02530368]
[1680609778226,0.02732341,28295.0,28293.0,0.198282]
[1680609778444,0.00032341,28295.0,28293.0,0.198282]
[1680609778665,0.027,28294.0,28293.0,0.198282]
[1680609778853,0.027,28294.0,28293.0,0.27530726]
[1680609779082,0.027,28294.0,28293.0,0.197994]
[1680609779281,0.16978246,28298.0,28293.0,0.014137]
[1680609779567,0.009,28294.0,28293.0,0.33275381]
[1680609779792,0.009,28294.0,28293.0,0.198062]
[1680609779982,0.009,28294.0,28293.0,0.190857]
[1680609780237,0.009,28294.0,28293.0,0.198371]
[1680609780928,0.009,28294.0,28293.0,0.74245482]
[1680609781808,0.009,28294.0,28293.0,0.91139929]
[1680609782251,0.009,28294.0,28293.0,0.78468595]
[1680609782927,0.009,28294.0,28293.0,0.82692206]
[1680609783242,0.05842973,28300.0,28293.0,0.82692206]
[1680609783243,0.04983266,28300.0,28294.0,0.03599999]
[1680609783354,0.0496702,28300.0,28295.0,0.3718]
[1680609783586,0.0496702,28300.0,28299.0,0.42872492]
[1680609783817,0.00016246,28307.0,28299.0,1.25531988]
[1680609784047,0.02105004,28309.0,28302.0,0.08437728]
[1680609784279,0.02105004,28309.0,28304.0,0.014132]
[1680609784500,0.02105004,28309.0,28305.0,0.14189681]
[1680609784749,0.02105004,28309.0,28306.0,0.014131]
[1680609784978,0.001,28307.0,28306.0,0.15602781]
[1680609785192,0.00016246,28307.0,28306.0,0.02973378]
[1680609785416,0.00016246,28307.0,28306.0,0.014131]
[1680609785860,0.00866246,28307.0,28306.0,0.015131]
[1680609786290,0.00016246,28307.0,28306.0,0.014131]
[1680609786515,0.0085,28307.0,28306.0,0.014131]
[1680609786992,0.00866246,28308.0,28306.0,0.014131]
[1680609787434,0.015,28307.0,28306.0,0.015131]
[1680609787652,0.00866246,28307.0,28306.0,0.014131]
[1680609787872,0.00866246,28307.0,28306.0,0.015131]
[1680609788095,0.00866246,28307.0,28306.0,0.014131]
[1680609788335,0.02088758,28309.0,28306.0,0.015131]
[1680609788336,0.00866246,28308.0,28306.0,0.015131]
[1680609788582,0.015,28307.0,28306.0,0.015131]
[1680609788794,0.01516246,28307.0,28306.0,0.015131]
[1680609789010,0.02398926,28307.0,28306.0,0.015131]
[1680609789232,0.00898926,28307.0,28306.0,0.014131]
[1680609789456,0.0003268,28307.0,28306.0,0.001]
[1680609789678,0.00048926,28307.0,28306.0,0.001]
[1680609790343,0.00048926,28307.0,28304.0,0.014131]
[1680609790562,0.0153268,28307.0,28306.0,0.001]
[1680609790835,0.02398926,28307.0,28306.0,0.001]
[1680609791930,0.0238268,28307.0,28306.0,0.001]
[1680609792151,0.02398926,28307.0,28306.0,0.001]
[1680609792380,0.01548926,28307.0,28306.0,0.21355281]
[1680609792606,0.0153268,28307.0,28306.0,0.95116139]
[1680609792831,0.0153268,28307.0,28306.0,0.89364186]
[1680609793049,0.015,28307.0,28306.0,1.09364186]
[1680609793269,0.02088758,28309.0,28306.0,1.21920778]
[1680609793496,0.002,28307.0,28306.0,0.96618892]
[1680609793724,0.02088758,28309.0,28306.0,0.99417575]
[1680609793945,0.02088758,28309.0,28307.0,0.2825]
[1680609794162,0.02088758,28309.0,28308.0,0.04239]
[1680609795050,0.02288758,28309.0,28308.0,0.04239]
[1680609795272,0.02088758,28309.0,28308.0,0.16073448]
[1680609795491,0.02088758,28309.0,28308.0,0.17573448]
[1680609796136,0.02188758,28309.0,28308.0,0.18673448]
[1680609796368,0.02088758,28309.0,28308.0,0.17573448]
[1680609796596,0.0326838,28321.0,28310.0,0.3718]
[1680609796818,0.0326838,28321.0,28319.0,0.17655]
[1680609796819,0.00021,28320.0,28319.0,0.17655]
[1680609797045,0.0326838,28321.0,28319.0,0.87521881]
[1680609797423,0.0326838,28321.0,28320.0,1.07708924]
[1680609797430,0.0326838,28321.0,28320.0,0.35057868]
[1680609797818,0.016,28324.0,28321.0,0.2]
[1680609798049,0.016,28324.0,28323.0,0.25981]
[1680609798278,0.016,28324.0,28323.0,0.274112]
[1680609798506,0.016,28324.0,28323.0,0.1976103]
[1680609798727,0.01594,28324.0,28323.0,0.2338303]
[1680609798957,0.01594,28324.0,28323.0,0.4338303]
[1680609799196,0.01594,28324.0,28323.0,0.2338303]
[1680609800339,0.01594,28324.0,28323.0,0.4338303]
[1680609800565,0.01694,28324.0,28323.0,0.4618303]
[1680609801014,0.01594,28324.0,28323.0,0.4338303]
[1680609802382,0.01694,28324.0,28323.0,0.4618303]
[1680609802614,0.01694,28324.0,28323.0,0.8336303]
[1680609803086,0.01694,28324.0,28323.0,0.161822]
[1680609803540,0.02544,28324.0,28323.0,0.0644]
[1680609803776,0.03244,28324.0,28323.0,0.028]
[1680609803991,0.25421918,28324.0,28323.0,0.028]
[1680609804220,0.25442918,28324.0,28323.0,0.028]
[1680609805118,0.25342918,28324.0,28318.0,0.014124]
[1680609805345,0.25342918,28324.0,28323.0,0.002]
[1680609805346,0.20946218,28324.0,28323.0,0.002]
[1680609805562,0.09142518,28324.0,28323.0,0.002]
[1680609805786,0.08342518,28324.0,28319.0,0.014124]
[1680609806009,0.08342518,28324.0,28318.0,0.014124]
[1680609806010,0.061062,28323.0,28318.0,0.014124]
[1680609806291,0.22656242,28323.0,28314.0,0.17658]
[1680609806527,0.007,28322.0,28317.0,0.014125]
[1680609806743,0.057758,28321.0,28319.0,0.001]
[1680609806964,0.052583,28320.0,28317.0,0.014125]
[1680609807181,0.00021,28320.0,28318.0,0.014125]
[1680609807402,0.00871,28321.0,28318.0,0.014125]
[1680609808474,0.01671,28321.0,28318.0,0.015125]
[1680609808710,0.007,28320.0,28318.0,0.015125]
[1680609808927,0.00750282,28320.0,28318.0,0.015125]
[1680609809383,0.00050282,28320.0,28318.0,0.015125]
[1680609809835,0.00050282,28320.0,28318.0,0.014125]
[1680609810068,0.00821,28320.0,28318.0,0.015125]
[1680609810730,0.00821,28320.0,28319.0,0.007079]
[1680609810952,0.00821,28320.0,28319.0,0.021203]
[1680609811177,0.00821,28320.0,28318.0,0.015124]
[1680609811401,0.00821,28320.0,28318.0,0.0194614]
[1680609811647,0.021,28325.0,28318.0,0.0194614]
[1680609811648,0.021,28332.0,28319.0,0.17396]
[1680609811873,6e-05,28326.0,28324.0,1.83790966]
[1680609812104,0.021,28332.0,28328.0,0.40716]
[1680609812337,0.021,28334.0,28328.0,0.40716]
[1680609812338,0.021,28334.0,28330.0,0.57326]
[1680609812569,0.021,28334.0,28333.0,0.4547]
[1680609812796,0.021,28334.0,28333.0,0.70015781]
[1680609813058,0.021,28334.0,28333.0,0.70027781]
[1680609813278,0.0208668,28334.0,28333.0,0.558261]
[1680609813499,0.0208668,28334.0,28333.0,0.819461]
[1680609813730,0.0208668,28334.0,28333.0,0.9296671]
[1680609813979,0.0208668,28334.0,28333.0,1.3014671]
[1680609814428,0.0208668,28334.0,28333.0,1.65617766]
[1680609814872,0.0208668,28334.0,28333.0,1.3294671]
[1680609815096,0.0208668,28334.0,28333.0,1.76737766]
[1680609816016,0.0208668,28334.0,28333.0,2.06737766]
[1680609816716,0.0208668,28334.0,28333.0,2.03937766]
[1680609816946,0.0208668,28334.0,28333.0,2.06737766]
[1680609817169,0.0208668,28334.0,28333.0,2.05027766]
[1680609817404,0.0208668,28334.0,28333.0,2.21959766]
[1680609817648,0.0208668,28334.0,28333.0,2.10939156]
[1680609818088,0.0208668,28334.0,28333.0,2.08139156]
[1680609818546,0.0208668,28334.0,28333.0,2.10939156]
[1680609819484,0.0208668,28334.0,28333.0,2.08139156]
[1680609819713,0.0208668,28334.0,28333.0,2.10939156]
[1680609819935,0.021,28338.0,28335.0,0.40716]
[1680609820159,0.021,28338.0,28337.0,0.32581]
[1680609820407,0.021,28338.0,28337.0,0.339925]
[1680609820640,0.021,28338.0,28337.0,1.521825]
[1680609821766,0.021,28338.0,28337.0,0.773615]
[1680609821993,0.026,28338.0,28337.0,0.624215]
[1680609822430,0.026,28338.0,28337.0,0.652215]
[1680609823086,0.026,28338.0,28337.0,0.624215]
[1680609823312,0.026,28338.0,28337.0,0.652215]
[1680609825385,0.02591539,28338.0,28337.0,0.652215]
[1680609826241,0.02591539,28338.0,28337.0,0.828655]
[1680609826469,0.02591539,28338.0,28337.0,0.416915]
[1680609828070,0.02591539,28338.0,28337.0,0.388915]
[1680609828292,0.02591539,28338.0,28337.0,0.416915]
[1680609828514,0.02591539,28338.0,28337.0,0.4602753]
[1680609828733,0.02591539,28338.0,28337.0,0.4882753]
[1680609828955,0.02591539,28338.0,28337.0,0.4602753]
[1680609829174,0.02591539,28338.0,28337.0,0.4882753]
[1680609829645,0.02091539,28338.0,28337.0,0.4882753]
[1680609829869,0.02591539,28338.0,28337.0,0.4882753]
[1680609830101,0.02591539,28338.0,28337.0,0.4602753]
[1680609830788,0.02591539,28338.0,28337.0,0.6878753]
[1680609831009,0.02091539,28338.0,28337.0,1.44238586]
[1680609831200,0.02091539,28338.0,28337.0,1.44974586]
[1680609831423,0.02091539,28338.0,28337.0,1.47774586]
[1680609831650,0.02091539,28338.0,28337.0,1.0950353]
[1680609831917,0.02264363,28341.0,28339.0,0.03683077]
[1680609832136,0.02264363,28341.0,28340.0,0.12248208]
[1680609832359,0.02264363,28341.0,28340.0,0.29890208]
[1680609833710,0.02264363,28341.0,28340.0,0.49890208]
[1680609834159,0.02264363,28341.0,28340.0,0.52690208]
[1680609834387,0.03114363,28341.0,28340.0,0.028]
[1680609834642,0.03114363,28341.0,28340.0,0.042114]
[1680609835300,0.03147323,28341.0,28340.0,0.014114]
[1680609835528,0.02297323,28341.0,28340.0,0.024]
[1680609835812,0.08304523,28341.0,28339.0,0.03683077]
[1680609836033,0.0085,28340.0,28339.0,0.03683077]
[1680609836486,0.061986,28340.0,28339.0,0.03683077]
[1680609837160,0.061986,28340.0,28339.0,0.05383077]
[1680609837600,0.062166,28340.0,28339.0,0.05383077]
[1680609838515,0.062166,28340.0,28339.0,0.03683077]
[1680609838736,0.064366,28340.0,28339.0,0.04783077]
[1680609838959,0.064186,28340.0,28339.0,0.04783077]
[1680609839178,0.064366,28340.0,28339.0,0.04783077]
[1680609839651,0.064366,28340.0,28339.0,0.03683077]
[1680609839880,0.066366,28340.0,28339.0,0.03683077]
[1680609840100,0.064186,28340.0,28339.0,0.03683077]
[1680609840292,0.066366,28340.0,28339.0,0.04415697]
[1680609840541,0.01088,28340.0,28339.0,0.04415697]
[1680609840768,0.01068,28340.0,28339.0,0.05827097]
[1680609841009,0.01068,28340.0,28339.0,0.10157817]
[1680609841239,0.0105,28340.0,28339.0,0.10157817]
[1680609841461,0.0085,28340.0,28339.0,0.10157817]
[1680609841685,0.0135,28340.0,28339.0,0.05927097]
[1680609841911,0.0157,28340.0,28339.0,0.04515697]
[1680609842588,0.063763,28340.0,28339.0,0.04415697]
[1680609842820,0.068763,28340.0,28339.0,0.04515697]
[1680609845121,2.24065147,28340.0,28339.0,0.02009934]
[1680609845375,2.24065147,28340.0,28339.0,0.01909934]
[1680609845599,2.23565147,28340.0,28339.0,0.01909934]
[1680609845821,2.445585,28340.0,28339.0,0.01909934]
[1680609846061,0.2,28339.0,28334.0,0.00018]
[1680609846280,0.2,28339.0,28328.0,0.3748]
[1680609846281,0.0022,28335.0,28330.0,0.00018]
[1680609846730,0.0022,28331.0,28330.0,0.00018]
[1680609847710,0.058463,28331.0,28330.0,0.00018]
[1680609848142,0.058463,28331.0,28327.0,0.00018]
[1680609848362,0.0085,28331.0,28330.0,0.006]
[1680609848593,0.051133,28331.0,28327.0,0.00018]
[1680609848809,0.075933,28331.0,28330.0,0.001]
[1680609849026,0.1057261,28331.0,28327.0,0.00018]
[1680609849240,0.0022,28328.0,28327.0,0.00118]
[1680609849463,0.0022,28328.0,28327.0,0.00018]
[1680609849694,0.053036,28328.0,28326.0,0.00018]
[1680609849938,0.0085,28327.0,28326.0,0.00018]
[1680609850396,0.052035,28327.0,28326.0,0.00018]
[1680609850511,0.060668,28327.0,28326.0,0.00018]
[1680609850733,0.0085,28327.0,28326.0,0.00018]
[1680609850945,0.0085,28327.0,28326.0,0.014301]
[1680609851239,0.0085,28327.0,28326.0,0.014121]
[1680609851620,0.006,28327.0,28326.0,0.001]
[1680609852213,0.006,28327.0,28326.0,0.015301]
[1680609852437,0.006,28327.0,28326.0,0.00118]
[1680609852661,0.006,28327.0,28326.0,0.001]
[1680609853113,0.006,28327.0,28326.0,0.00118]
[1680609853767,0.0145,28327.0,28326.0,0.015301]
[1680609854648,0.0145,28327.0,28326.0,0.041216]
[1680609855136,0.0145,28327.0,28326.0,0.068162]
[1680609855821,0.006,28327.0,28326.0,0.068162]
[1680609856038,0.006,28327.0,28326.0,0.041216]
[1680609856259,0.00632565,28327.0,28326.0,0.041216]
[1680609857129,0.00632565,28327.0,28326.0,0.048681]
[1680609857571,0.00632565,28327.0,28326.0,0.041216]
[1680609858239,0.006,28327.0,28326.0,0.048531]
[1680609858687,0.006,28327.0,28326.0,0.041216]
[1680609859163,0.006,28327.0,28326.0,0.048395]
[1680609859383,0.006,28327.0,28326.0,0.041216]
[1680609859823,0.006,28327.0,28326.0,0.048309]
[1680609860055,0.00568229,28327.0,28326.0,0.0686912]
[1680609860295,0.00568229,28327.0,28326.0,0.049002]
[1680609860508,0.00568229,28327.0,28326.0,0.041036]
[1680609861184,0.00568229,28327.0,28326.0,0.048516]
[1680609861592,0.00568229,28327.0,28326.0,0.041036]
[1680609861860,0.00568229,28327.0,28326.0,0.048186]
[1680609862536,0.00568229,28327.0,28326.0,0.0814958]
[1680609862771,0.00568229,28327.0,28326.0,0.048186]
[1680609863210,0.00568229,28327.0,28326.0,0.041036]
[1680609863893,0.00568229,28327.0,28326.0,0.04836]
[1680609864836,0.00568229,28327.0,28326.0,0.041036]
[1680609865069,0.00568229,28327.0,28326.0,0.048687]
[1680609866701,0.00568229,28327.0,28326.0,0.026915]
[1680609867596,0.00568229,28327.0,28326.0,0.041036]
[1680609869627,0.00568229,28327.0,28326.0,0.067982]
[1680609869854,0.00568229,28327.0,28326.0,0.026915]
[1680609871201,0.00568229,28327.0,28326.0,0.041036]
[1680609871421,0.00568229,28327.0,28326.0,0.026915]
[1680609871894,0.01418229,28327.0,28326.0,0.041036]
[1680609872106,0.00568229,28327.0,28326.0,0.041036]
[1680609872746,0.00568229,28327.0,28326.0,0.048511]
[1680609873649,0.00568229,28327.0,28326.0,0.041036]
[1680609874347,0.00568229,28327.0,28326.0,0.04852]
[1680609874557,0.00568229,28327.0,28326.0,0.048639]
[1680609874780,0.00568229,28327.0,28326.0,0.041036]
[1680609875216,0.00568229,28327.0,28326.0,0.048425]
[1680609878477,0.00568229,28327.0,28326.0,0.02251]
[1680609881152,0.00568229,28327.0,28326.0,0.10613581]
[1680609881778,0.00568229,28327.0,28326.0,0.02251]
[1680609882601,0.00568229,28327.0,28326.0,0.015121]
[1680609882812,0.01418229,28327.0,28326.0,0.001]
[1680609885839,0.01418229,28327.0,28326.0,0.08462581]
[1680609887191,0.01418229,28327.0,28326.0,0.2101745]
[1680609887404,0.01418229,28327.0,28326.0,0.2242955]
[1680609887615,0.01418229,28327.0,28326.0,0.2101745]
[1680609888280,0.01418229,28327.0,28326.0,0.2319575]
[1680609888487,0.01418229,28327.0,28326.0,0.2242955]
[1680609888935,0.01418229,28327.0,28326.0,0.2101745]
[1680609890063,0.01418229,28327.0,28326.0,0.2242955]
[1680609890278,0.01418229,28327.0,28326.0,0.2176345]
[1680609890500,0.01418229,28327.0,28326.0,0.2242955]
[1680609890739,0.01418229,28327.0,28326.0,0.2101745]
[1680609890950,0.01418229,28327.0,28326.0,0.2242955]
[1680609891159,0.01418229,28327.0,28326.0,0.60684165]
[1680609891365,0.01418229,28327.0,28326.0,0.59272065]
[1680609891789,0.01418229,28327.0,28326.0,0.60684165]
[1680609892424,0.01418229,28327.0,28326.0,0.59946365]
[1680609892839,0.00568229,28327.0,28326.0,0.81676847]
[1680609893260,0.00568229,28327.0,28326.0,0.64937021]
[1680609893671,0.00568229,28327.0,28326.0,0.81868762]
[1680609893873,0.00568229,28327.0,28326.0,0.64937021]
[1680609897290,0.00568229,28327.0,28326.0,0.81869508]
[1680609898774,0.0022,28329.0,28326.0,0.92358689]
[1680609898987,0.0085,28329.0,28328.0,0.08466398]
[1680609900275,0.02682622,28329.0,28328.0,0.08566398]
[1680609900732,0.02182622,28329.0,28328.0,0.08566398]
[1680609900954,0.01832622,28329.0,28328.0,0.08566398]
[1680609902914,0.19682622,28329.0,28328.0,0.08566398]
[1680609903340,0.19902622,28329.0,28328.0,0.001]
[1680609903536,0.25219422,28329.0,28328.0,0.001]
[1680609903994,0.29524336,28329.0,28328.0,0.001]
[1680609904208,0.47174236,28329.0,28328.0,0.001]
[1680609904696,0.23013422,28329.0,28328.0,0.001]
[1680609904904,0.23233422,28329.0,28328.0,0.001]
[1680609905350,0.23264005,28329.0,28328.0,0.001]
[1680609906235,0.23969905,28329.0,28328.0,0.001]
[1680609906448,0.23264005,28329.0,28328.0,0.001]
[1680609906853,0.23469905,28329.0,28328.0,0.001]
[1680609907321,0.90655905,28329.0,28328.0,0.001]
[1680609907554,0.99022795,28329.0,28328.0,0.001]
[1680609907784,0.3718,28327.0,28321.0,0.08466398]
[1680609907995,0.0022,28322.0,28321.0,0.00018]
[1680609908213,0.009261,28322.0,28320.0,0.21183995]
[1680609908473,0.061125,28321.0,28320.0,0.00018]
[1680609908691,0.068186,28321.0,28320.0,0.00018]
[1680609908906,0.237686,28321.0,28320.0,0.00018]
[1680609909567,0.779486,28321.0,28320.0,0.00018]
[1680609909790,0.88633283,28321.0,28320.0,0.00018]
[1680609910016,0.88633283,28321.0,28320.0,0.00012]
[1680609910224,0.88633283,28321.0,28319.0,0.2159286]
[1680609910436,0.83370783,28321.0,28320.0,0.001]
[1680609910665,0.71939783,28321.0,28319.0,0.2159286]
[1680609910888,0.67295801,28320.0,28319.0,0.2159286]
[1680609911094,0.70264401,28320.0,28319.0,0.2159286]
[1680609911331,0.70124401,28320.0,28319.0,0.2159286]
[1680609911979,0.72124401,28320.0,28319.0,0.2179286]
[1680609912244,0.640424,28320.0,28319.0,0.2179286]
[1680609912462,0.6263,28320.0,28319.0,0.2179286]
[1680609913347,0.62660329,28320.0,28319.0,0.2179286]
[1680609913790,0.06894129,28320.0,28319.0,0.2179286]
[1680609914004,0.02030329,28320.0,28319.0,0.2179286]
[1680609914439,0.07030329,28320.0,28319.0,0.2179286]
[1680609915321,0.07030329,28320.0,28319.0,0.63925196]
[1680609915540,0.07030329,28320.0,28319.0,1.19051091]
[1680609915756,0.07030329,28320.0,28319.0,1.52284727]
[1680609916003,0.05030329,28320.0,28319.0,1.52084727]
[1680609916227,0.05,28320.0,28319.0,1.69017214]
[1680609916441,0.04930186,28326.0,28320.0,0.2]
[1680609916658,0.04912186,28326.0,28323.0,0.17653]
[1680609916874,0.16962,28328.0,28324.0,0.042366]
[1680609917088,0.00018,28328.0,28325.0,0.14189681]
[1680609917317,0.0003047,28325.0,28324.0,0.51669681]
[1680609917533,0.0003047,28325.0,28324.0,0.3748]
[1680609917761,0.0003047,28325.0,28324.0,0.417166]
[1680609918421,0.00018,28328.0,28324.0,0.417166]
[1680609918649,0.00018,28328.0,28324.0,0.57156373]
[1680609918864,0.00918,28328.0,28325.0,0.001]
[1680609919105,0.00018,28328.0,28326.0,0.014121]
[1680609919317,0.00030527,28327.0,28326.0,0.014121]
[1680609920678,0.00930527,28327.0,28326.0,0.015121]
[1680609922664,0.00930527,28327.0,28326.0,0.001]
[1680609922917,0.00930527,28327.0,28326.0,0.015121]
[1680609923367,0.00930527,28327.0,28326.0,0.02392]
[1680609923577,0.00930527,28327.0,28326.0,0.009799]
[1680609924252,0.00930527,28327.0,28326.0,0.001]
[1680609925357,0.00930527,28327.0,28326.0,0.010771]
[1680609925780,0.00930527,28327.0,28326.0,0.001]
[1680609926003,0.00930527,28327.0,28326.0,0.0492792]
[1680609926926,0.00930527,28327.0,28326.0,0.001]
[1680609927139,0.00930527,28327.0,28326.0,0.010226]
[1680609927475,0.00930527,28327.0,28326.0,0.001]